Workbook

Sheet Loan
A1: Loan: | B1: 25000 | C1: Compounded quarterly at: | F1: 0.025
E2: Late | H2: Next | I2: Blended
A3: Due | B3: Actual | C3: Payment | D3: Interest | E3: Fee | F3: Principal | G3: Amount | H3: Interest | I3: Payment
A4: Date | B4: Date | E4: (1.5%) | F4: Reduction | G4: Owed | H4: Payment | I4: Eff 11/1/10
B5: 2008-08-01 | C5: =-B1 -> -25000 | G5: =B1 -> 25000 | H5: =ROUND($F$1*G5,2) -> 625 | I5: =ROUND(G5/((1-(1+$F$1)^-8)/$F$1),2) -> 3486.68
A6: 2008-11-01 | B6: 2008-11-28 | C6: 1000 | D6: =H5 -> 625 | E6: =ROUND(D6*0.015,2) -> 9.38 | F6: =C6-(D6+E6) -> 365.62 | G6: =G5-F6 -> 24634.38 | H6: =ROUND($F$1*G6,2) -> 615.86 | I6: =ROUND(I$5*G6/G$5,2) -> 3435.69
A7: 2009-02-01 | B7: 2009-04-10 | C7: 1000 | D7: 615.86 | E7: 0 | F7: 384.14 | G7: 24250.24 | H7: 606.26 | I7: 3382.11
A8: 2009-05-01 | B8: 2009-06-01 | C8: 1500 | D8: 606.26 | E8: 0 | F8: 893.74 | G8: 23356.5 | H8: 583.91 | I8: 3257.47
A9: 2009-08-01 | B9: 2009-08-24 | C9: 1000 | D9: 583.91 | E9: 0 | F9: 416.09 | G9: 22940.41 | H9: 573.51 | I9: 3199.43
A10: 2009-11-01 | B10: 2009-11-10 | C10: 1000 | D10: 573.51 | E10: 0 | F10: 426.49 | G10: 22513.92 | H10: 562.85 | I10: 3139.95
A11: 2010-02-01 | B11: 2009-02-16 | C11: 4000 | D11: 562.85 | E11: 0 | F11: 3437.15 | G11: 19076.77 | H11: 476.92 | I11: 2660.58
A12: 2010-05-01 | B12: 2010-06-04 | C12: 1500 | D12: =H11 -> 476.92 | E12: 0 | F12: =C12-(D12+E12) -> 1023.08 | G12: =G11-F12 -> 18053.69 | H12: 451.34 | I12: 2517.9
A13: 2010-08-01 | B13: 2010-07-21 | C13: 4000 | D13: =H12 -> 451.34 | E13: 0 | F13: =C13-(D13+E13) -> 3548.66 | G13: =G12-F13 -> 14505.03 | H13: =ROUND($F$1*G13,2) -> 362.63 | I13: 2022.98
A14: 2010-11-01 | B14: 2010-11-01 | C14: 2022.98 | D14: =H13 -> 362.63 | E14: 0 | F14: =C14-(D14+E14) -> 1660.35 | G14: =G13-F14 -> 12844.68 | H14: 321.12 | I14: =ROUND(G14/((1-(1+$F$1)^-7)/$F$1),2) -> 2022.98
A15: 2011-02-01 | B15: 2011-01-31 | C15: 2022.98 | D15: =H14 -> 321.12 | E15: 0 | F15: 1701.86 | G15: =G14-F15 -> 11142.82 | H15: 278.57 | I15: =ROUND(G15/((1-(1+$F$1)^-6)/$F$1),2) -> 2022.98
A16: 2011-05-01 | B16: 2011-05-03 | C16: 2022.98 | D16: =H15 -> 278.57 | E16: 0 | F16: 1744.41 | G16: 9398.41 | H16: 234.96 | I16: =ROUND(G16/((1-(1+$F$1)^-5)/$F$1),2) -> 2022.98
A17: 2011-08-01 | B17: 2011-08-08 | C17: 2022.98 | D17: 234.96 | E17: 0 | F17: =C17-(D17+E17) -> 1788.02 | G17: =G16-F17 -> 7610.39 | H17: 190.26 | I17: =ROUND(G17/((1-(1+$F$1)^-4)/$F$1),2) -> 2022.98
A18: 2011-11-01 | C18: 2022.98 | D18: 190.26 | E18: 0 | F18: 1832.72 | G18: 5777.67 | H18: =ROUND($F$1*G18,2) -> 144.44 | I18: =ROUND(G18/((1-(1+$F$1)^-3)/$F$1),2) -> 2022.98
A19: 2012-02-01 | C19: 2022.98 | D19: 144.44 | E19: 0 | F19: =C19-(D19+E19) -> 1878.54 | G19: =G18-F19 -> 3899.13 | H19: 97.48 | I19: =ROUND(G19/((1-(1+$F$1)^-2)/$F$1),2) -> 2022.97
A20: 2012-05-01 | C20: 2022.98 | D20: 97.48 | E20: 0 | F20: 1925.5 | G20: 1973.63 | H20: 49.34 | I20: =ROUND(G20/((1-(1+$F$1)^-1)/$F$1),2) -> 2022.97
A21: 2012-08-01 | C21: 2022.97 | D21: 49.34 | E21: 0 | F21: 1973.63 | G21: -6.366462912e-12 | H21: 0 | I21: =ROUND(G21/((1-(1+$F$1)^-4)/$F$1),2) -> 0
A24: Above dotted line: minimum payments are outstanding interest
A25: Below dotted line: minimum payment is blended payment (principal + interest) over 8 quarters
A26: Coloured background indicates projected payments

Sheet Sudoku Base

Sheet Sudoku 1
B3: 7 | F3: 8 | J3: 6
E5: 7 | G5: 5 | I5: 1
D7: 1 | F7: 4 | H7: 8 | I7: 9 | J7: 7
B9: 2 | C9: 1 | D9: 5 | F9: 3
E13: 8 | H13: 7 | I13: 6 | J13: 2
C15: 3 | F15: 2 | H15: 6
C17: 8 | E17: 9 | G17: 7
F19: 3 | J19: 5

Sheet Sheet1
